[Event "Late-Titled-Tuesday-Blitz-May-14-2024"]
[Site "Chess.com"]
[Date "2024.05.14"]
[Round "6"]
[White "chessdjw"]
[Black "Nf3c5"]
[Result "1-0"]
[WhiteElo "2769"]
[BlackElo "2561"]
[TimeControl "180+1"]
[EndTime "15:06:59 PDT"]
[Termination "chessdjw won by resignation"]

1. d4 {[%clk 0:03:00.9]} 1... Nf6 {[%clk 0:02:56.9]} 2. c4 {[%clk 0:03:01.4]}
2... Nc6 {[%clk 0:02:48.7]} 3. Nc3 {[%clk 0:03:00.5]} 3... e5 {[%clk 0:02:47.7]}
4. d5 {[%clk 0:03:00.3]} 4... Ne7 {[%clk 0:02:48.2]} 5. Nf3 {[%clk 0:02:59.7]}
5... Ng6 {[%clk 0:02:48.7]} 6. h4 {[%clk 0:02:56.2]} 6... h5 {[%clk 0:02:34.5]}
7. Bg5 {[%clk 0:02:55.7]} 7... Be7 {[%clk 0:02:18.3]} 8. e3 {[%clk 0:02:56.2]}
8... d6 {[%clk 0:02:14.8]} 9. Bd3 {[%clk 0:02:56.5]} 9... Nf8 {[%clk 0:02:14.5]}
10. Nd2 {[%clk 0:02:53.1]} 10... N8d7 {[%clk 0:02:10.1]} 11. Qe2 {[%clk
0:02:44.7]} 11... Nc5 {[%clk 0:02:10.1]} 12. Bc2 {[%clk 0:02:45]} 12... a5
{[%clk 0:02:10.5]} 13. O-O-O {[%clk 0:02:40.8]} 13... Bg4 {[%clk 0:01:55.6]} 14.
f3 {[%clk 0:02:40.5]} 14... Bd7 {[%clk 0:01:56.3]} 15. Kb1 {[%clk 0:02:29.5]}
15... c6 {[%clk 0:01:54.2]} 16. dxc6 {[%clk 0:02:10.8]} 16... bxc6 {[%clk
0:01:47.4]} 17. Bxf6 {[%clk 0:02:09.2]} 17... gxf6 {[%clk 0:01:35.5]} 18. Nde4
{[%clk 0:02:09.8]} 18... Nb7 {[%clk 0:01:26.5]} 19. g4 {[%clk 0:01:58.2]} 19...
Qb6 {[%clk 0:01:11.9]} 20. Na4 {[%clk 0:01:51.2]} 20... Qc7 {[%clk 0:01:08.7]}
21. Ng3 {[%clk 0:01:45.4]} 21... hxg4 {[%clk 0:00:59.6]} 22. fxg4 {[%clk
0:01:42.7]} 22... d5 {[%clk 0:00:59.9]} 23. Bf5 {[%clk 0:01:38.7]} 23... Be6
{[%clk 0:00:57.5]} 24. Nc3 {[%clk 0:01:30.5]} 24... Rd8 {[%clk 0:00:56.1]} 25.
g5 {[%clk 0:01:17]} 25... fxg5 {[%clk 0:00:50.8]} 26. hxg5 {[%clk 0:01:16.2]}
26... Rxh1 {[%clk 0:00:51.1]} 27. Rxh1 {[%clk 0:01:15.9]} 27... e4 {[%clk
0:00:40.2]} 28. cxd5 {[%clk 0:00:59]} 28... cxd5 {[%clk 0:00:31.1]} 29. Rh8+
{[%clk 0:00:37.7]} 29... Kd7 {[%clk 0:00:26.7]} 30. Nxd5 {[%clk 0:00:33.5]}
30... Qxg3 {[%clk 0:00:24.1]} 31. Qb5+ {[%clk 0:00:28.3]} 31... Kd6 {[%clk
0:00:24.2]} 32. Qb6+ {[%clk 0:00:11.9]} 32... Kxd5 {[%clk 0:00:12.8]} 33. Bxe6+
{[%clk 0:00:11.9]} 33... fxe6 {[%clk 0:00:10.5]} 34. Qxb7+ {[%clk 0:00:12.2]}
34... Ke5 {[%clk 0:00:08.7]} 35. Rxd8 {[%clk 0:00:09.3]} 35... Qe1+ {[%clk
0:00:06.7]} 36. Kc2 {[%clk 0:00:09.5]} 36... Bxd8 {[%clk 0:00:05.9]} 37. Qb8+
{[%clk 0:00:09.9]} 37... Kf5 {[%clk 0:00:05.2]} 38. Qxd8 {[%clk 0:00:09.2]}
38... Qe2+ {[%clk 0:00:05.8]} 39. Kc3 {[%clk 0:00:04.9]} 39... Qxe3+ {[%clk
0:00:05.3]} 40. Kc4 {[%clk 0:00:04.9]} 40... Qxg5 {[%clk 0:00:04.8]} 41. Qa8
{[%clk 0:00:01.9]} 41... Qd2 {[%clk 0:00:04.3]} 42. Qf8+ {[%clk 0:00:00.9]}
42... Ke5 {[%clk 0:00:04.6]} 43. Qg7+ {[%clk 0:00:01.1]} 43... Kd6 {[%clk
0:00:04.3]} 44. Qf8+ {[%clk 0:00:01.3]} 44... Kd7 {[%clk 0:00:04.1]} 45. Qf7+
{[%clk 0:00:01.4]} 45... Kd6 {[%clk 0:00:03.9]} 46. Qf8+ {[%clk 0:00:01.7]}
46... Ke5 {[%clk 0:00:04.8]} 47. Qh8+ {[%clk 0:00:01.7]} 47... Kf4 {[%clk
0:00:05.7]} 48. Qh6+ {[%clk 0:00:01.8]} 48... Kf3 {[%clk 0:00:06.3]} 49. Qxd2
{[%clk 0:00:02.7]} 49... e3 {[%clk 0:00:07.1]} 50. Qe1 {[%clk 0:00:03.1]} 50...
e2 {[%clk 0:00:07.7]} 51. Kd3 {[%clk 0:00:03.5]} 51... e5 {[%clk 0:00:07.9]} 52.
Qxe2+ {[%clk 0:00:04.2]} 52... Kf4 {[%clk 0:00:08.5]} 53. Qe4+ {[%clk
0:00:04.9]} 1-0

[Event "Late-Titled-Tuesday-Blitz-May-14-2024"]
[Site "Chess.com"]
[Date "2024.05.14"]
[Round "6"]
[White "VacheH009"]
[Black "Incognito_Knight"]
[Result "0-1"]
[WhiteElo "2543"]
[BlackElo "2727"]
[TimeControl "180+1"]
[EndTime "15:07:02 PDT"]
[Termination "Incognito_Knight won by checkmate"]

1. d4 {[%clk 0:03:00.9]} 1... Nf6 {[%clk 0:02:53.1]} 2. c4 {[%clk 0:03:00]} 2...
b6 {[%clk 0:02:51.4]} 3. f3 {[%clk 0:02:58.6]} 3... Nc6 {[%clk 0:02:49.6]} 4. d5
{[%clk 0:02:54.8]} 4... Ne5 {[%clk 0:02:49.5]} 5. e4 {[%clk 0:02:53.1]} 5... e6
{[%clk 0:02:40.6]} 6. Bf4 {[%clk 0:02:32.9]} 6... Ng6 {[%clk 0:02:37]} 7. Be3
{[%clk 0:02:32.4]} 7... Bc5 {[%clk 0:02:19]} 8. Bxc5 {[%clk 0:02:28.5]} 8...
bxc5 {[%clk 0:02:19.9]} 9. Qd2 {[%clk 0:02:06.8]} 9... d6 {[%clk 0:02:11.9]} 10.
Bd3 {[%clk 0:02:06.1]} 10... Ne5 {[%clk 0:02:02.5]} 11. Ne2 {[%clk 0:02:03.8]}
11... Rb8 {[%clk 0:01:52]} 12. b3 {[%clk 0:01:57.7]} 12... O-O {[%clk
0:01:47.9]} 13. O-O {[%clk 0:01:56.6]} 13... c6 {[%clk 0:01:40.9]} 14. dxe6
{[%clk 0:01:35]} 14... fxe6 {[%clk 0:01:41.8]} 15. Nbc3 {[%clk 0:01:29.6]} 15...
Qe7 {[%clk 0:01:37.4]} 16. Bc2 {[%clk 0:01:26.8]} 16... Nf7 {[%clk 0:01:32.1]}
17. Rad1 {[%clk 0:01:19]} 17... e5 {[%clk 0:01:30.7]} 18. Ng3 {[%clk 0:01:09.1]}
18... g6 {[%clk 0:01:26.7]} 19. a3 {[%clk 0:00:40.5]} 19... Bd7 {[%clk
0:01:16.5]} 20. b4 {[%clk 0:00:34.3]} 20... cxb4 {[%clk 0:01:11.8]} 21. axb4
{[%clk 0:00:35.2]} 21... Rxb4 {[%clk 0:01:10.9]} 22. Nb5 {[%clk 0:00:34.6]}
22... Rxc4 {[%clk 0:01:08.2]} 23. Bb3 {[%clk 0:00:29.1]} 23... cxb5 {[%clk
0:01:06.1]} 24. Bxc4 {[%clk 0:00:23.5]} 24... bxc4 {[%clk 0:01:07]} 25. Ra1
{[%clk 0:00:20.7]} 25... Be6 {[%clk 0:01:04.6]} 26. Qa5 {[%clk 0:00:19.9]} 26...
Rc8 {[%clk 0:00:55.1]} 27. Rfc1 {[%clk 0:00:18]} 27... Rc7 {[%clk 0:00:53]} 28.
Ne2 {[%clk 0:00:16.4]} 28... Kg7 {[%clk 0:00:50.5]} 29. Nc3 {[%clk 0:00:15.8]}
29... h5 {[%clk 0:00:45.8]} 30. Nb5 {[%clk 0:00:15.5]} 30... Rc5 {[%clk
0:00:46]} 31. Qa6 {[%clk 0:00:11.3]} 31... h4 {[%clk 0:00:38.2]} 32. Nc3 {[%clk
0:00:07.9]} 32... h3 {[%clk 0:00:34.2]} 33. Qxa7 {[%clk 0:00:07.2]} 33... Rc7
{[%clk 0:00:26.9]} 34. Qe3 {[%clk 0:00:05]} 34... hxg2 {[%clk 0:00:25.9]} 35.
Kxg2 {[%clk 0:00:04.8]} 35... Nh5 {[%clk 0:00:26.2]} 36. Kh1 {[%clk 0:00:05.4]}
36... Nf4 {[%clk 0:00:25.5]} 37. Rg1 {[%clk 0:00:04.8]} 37... Qh4 {[%clk
0:00:16.5]} 38. Ra2 {[%clk 0:00:05.2]} 38... Ng5 {[%clk 0:00:15.2]} 39. Rd2
{[%clk 0:00:04.1]} 39... Rd7 {[%clk 0:00:11.7]} 40. Nb5 {[%clk 0:00:04.3]} 40...
Ngh3 {[%clk 0:00:07.9]} 41. Rf1 {[%clk 0:00:03.4]} 41... Nd3 {[%clk 0:00:06.6]}
42. Re2 {[%clk 0:00:02.2]} 42... Rd8 {[%clk 0:00:05.5]} 43. Qa7+ {[%clk
0:00:01.2]} 43... Rd7 {[%clk 0:00:05.3]} 44. Qe3 {[%clk 0:00:01.8]} 44... Nhf4
{[%clk 0:00:05.7]} 45. Ra2 {[%clk 0:00:02]} 45... Bh3 {[%clk 0:00:05.8]} 46. Ra7
{[%clk 0:00:02.1]} 46... Rxa7 {[%clk 0:00:05.4]} 47. Qxa7+ {[%clk 0:00:03]}
47... Kh6 {[%clk 0:00:05.8]} 48. Qb8 {[%clk 0:00:01.9]} 48... Qf6 {[%clk
0:00:02.3]} 49. Rg1 {[%clk 0:00:01.5]} 49... Nf2# {[%clk 0:00:02.5]} 0-1

[Event "Late-Titled-Tuesday-Blitz-May-14-2024"]
[Site "Chess.com"]
[Date "2024.05.14"]
[Round "6"]
[White "PawnEatingZombie"]
[Black "Redzishchess"]
[Result "0-1"]
[WhiteElo "2308"]
[BlackElo "2499"]
[TimeControl "180+1"]
[EndTime "15:07:04 PDT"]
[Termination "Redzishchess won on time"]

1. e4 {[%clk 0:03:00.9]} 1... c5 {[%clk 0:02:59.8]} 2. Nc3 {[%clk 0:02:59.8]}
2... Nc6 {[%clk 0:02:59.2]} 3. f4 {[%clk 0:02:59.8]} 3... g6 {[%clk 0:02:55.2]}
4. Nf3 {[%clk 0:02:59.3]} 4... Bg7 {[%clk 0:02:55.5]} 5. a4 {[%clk 0:02:59.9]}
5... e6 {[%clk 0:02:51.8]} 6. e5 {[%clk 0:02:56.3]} 6... Nge7 {[%clk 0:02:39.9]}
7. Ne4 {[%clk 0:02:54.3]} 7... O-O {[%clk 0:02:36.4]} 8. Nxc5 {[%clk 0:02:32.2]}
8... d6 {[%clk 0:02:35.4]} 9. Ne4 {[%clk 0:02:09.4]} 9... dxe5 {[%clk
0:02:33.7]} 10. fxe5 {[%clk 0:02:09.7]} 10... Nxe5 {[%clk 0:02:33.1]} 11. Be2
{[%clk 0:01:52.2]} 11... Nf5 {[%clk 0:02:19.6]} 12. O-O {[%clk 0:01:48.1]} 12...
b6 {[%clk 0:02:07.2]} 13. d3 {[%clk 0:01:26]} 13... Bb7 {[%clk 0:02:03.4]} 14.
Bg5 {[%clk 0:01:20.4]} 14... Nxf3+ {[%clk 0:01:46.2]} 15. Bxf3 {[%clk
0:01:20.1]} 15... Qd4+ {[%clk 0:01:46.3]} 16. Kh1 {[%clk 0:01:18.2]} 16... Ne3
{[%clk 0:01:01.2]} 17. Bxe3 {[%clk 0:01:14.8]} 17... Qxe3 {[%clk 0:01:02.1]} 18.
Nf6+ {[%clk 0:01:10.1]} 18... Bxf6 {[%clk 0:01:02.4]} 19. Bxb7 {[%clk
0:01:10.5]} 19... Rab8 {[%clk 0:01:03.1]} 20. Bf3 {[%clk 0:00:57]} 20... Bxb2
{[%clk 0:01:00.7]} 21. Rb1 {[%clk 0:00:51.5]} 21... Bg7 {[%clk 0:00:56.9]} 22.
Rb4 {[%clk 0:00:43]} 22... h5 {[%clk 0:00:52.4]} 23. Qb1 {[%clk 0:00:34.9]}
23... Rbc8 {[%clk 0:00:47.6]} 24. c4 {[%clk 0:00:07.4]} 24... Bd4 {[%clk
0:00:41.1]} 25. Rd1 {[%clk 0:00:07.2]} 25... Rfd8 {[%clk 0:00:37.3]} 26. Qc1
{[%clk 0:00:06.6]} 26... Qxc1 {[%clk 0:00:20.2]} 27. Rxc1 {[%clk 0:00:06.7]}
27... Bc5 {[%clk 0:00:21.1]} 28. Rb3 {[%clk 0:00:06.3]} 28... Rd4 {[%clk
0:00:21.3]} 29. Rd1 {[%clk 0:00:05.6]} 29... Rcd8 {[%clk 0:00:21]} 30. g3 {[%clk
0:00:04.8]} 30... Kg7 {[%clk 0:00:19.3]} 31. Kg2 {[%clk 0:00:04.1]} 31... a5
{[%clk 0:00:17.9]} 32. Be2 {[%clk 0:00:03.5]} 32... f5 {[%clk 0:00:15.5]} 33.
Rf1 {[%clk 0:00:03.6]} 33... e5 {[%clk 0:00:15.4]} 34. h4 {[%clk 0:00:02.5]}
34... e4 {[%clk 0:00:13.2]} 35. dxe4 {[%clk 0:00:02.2]} 35... Rxe4 {[%clk
0:00:14.1]} 36. Bd3 {[%clk 0:00:00.5]} 36... Re3 {[%clk 0:00:12.9]} 37. Rf3
{[%clk 0:00:00.6]} 37... Rxf3 {[%clk 0:00:07.2]} 38. Kxf3 {[%clk 0:00:00.8]}
38... Kf6 {[%clk 0:00:08.1]} 39. Be2 {[%clk 0:00:00.7]} 39... Rd2 {[%clk
0:00:06.7]} 40. Rd3 {[%clk 0:00:00.8]} 40... Rxd3+ {[%clk 0:00:06.6]} 41. Bxd3
{[%clk 0:00:00.8]} 41... Ke5 {[%clk 0:00:07.5]} 42. Be2 {[%clk 0:00:00.9]} 42...
Kd4 {[%clk 0:00:07.3]} 43. Kf4 {[%clk 0:00:00.9]} 43... Bd6+ {[%clk 0:00:06.8]}
44. Kg5 {[%clk 0:00:01.2]} 44... Bxg3 {[%clk 0:00:07.1]} 45. Kxg6 {[%clk
0:00:01.8]} 45... Bxh4 {[%clk 0:00:07.5]} 46. Kxh5 {[%clk 0:00:02.4]} 46... Be7
{[%clk 0:00:03.7]} 47. Kg6 {[%clk 0:00:01.7]} 47... f4 {[%clk 0:00:04]} 48. Kf5
{[%clk 0:00:02.2]} 48... Ke3 {[%clk 0:00:04.4]} 49. Bg4 {[%clk 0:00:01]} 49...
f3 {[%clk 0:00:04.2]} 50. Ke6 {[%clk 0:00:00.5]} 50... f2 {[%clk 0:00:03.5]} 51.
Bh3 {[%clk 0:00:00.2]} 51... Bc5 {[%clk 0:00:03.3]} 0-1

[Event "Late-Titled-Tuesday-Blitz-May-14-2024"]
[Site "Chess.com"]
[Date "2024.05.14"]
[Round "6"]
[White "Quattroporte300"]
[Black "DIMONBANAN"]
[Result "0-1"]
[WhiteElo "2454"]
[BlackElo "2622"]
[TimeControl "180+1"]
[EndTime "15:07:05 PDT"]
[Termination "DIMONBANAN won on time"]

1. e4 {[%clk 0:03:00.9]} 1... e5 {[%clk 0:02:59.2]} 2. Nf3 {[%clk 0:03:01]} 2...
Nc6 {[%clk 0:02:58.9]} 3. Bc4 {[%clk 0:03:01.7]} 3... Nf6 {[%clk 0:02:58.3]} 4.
d3 {[%clk 0:03:02]} 4... h6 {[%clk 0:02:58.4]} 5. O-O {[%clk 0:03:02]} 5... g6
{[%clk 0:02:58.8]} 6. c3 {[%clk 0:02:59]} 6... Bg7 {[%clk 0:02:58.7]} 7. d4
{[%clk 0:02:50.7]} 7... exd4 {[%clk 0:02:35]} 8. e5 {[%clk 0:02:43]} 8... Ne4
{[%clk 0:02:13.5]} 9. cxd4 {[%clk 0:02:39.6]} 9... d5 {[%clk 0:02:08.9]} 10. Bb3
{[%clk 0:02:14]} 10... O-O {[%clk 0:02:08.7]} 11. h3 {[%clk 0:02:11.8]} 11...
Na5 {[%clk 0:01:40]} 12. Bc2 {[%clk 0:02:09.1]} 12... b6 {[%clk 0:01:40.3]} 13.
Nc3 {[%clk 0:02:09.2]} 13... Nxc3 {[%clk 0:01:36.6]} 14. bxc3 {[%clk 0:02:08.6]}
14... c5 {[%clk 0:01:29.8]} 15. Re1 {[%clk 0:02:00.2]} 15... Re8 {[%clk
0:01:27.6]} 16. Bf4 {[%clk 0:01:53.5]} 16... Nc4 {[%clk 0:01:16.9]} 17. Nd2
{[%clk 0:01:42.8]} 17... Nxd2 {[%clk 0:01:13.9]} 18. Qxd2 {[%clk 0:01:42.6]}
18... Be6 {[%clk 0:01:08.1]} 19. Bxh6 {[%clk 0:01:40.6]} 19... cxd4 {[%clk
0:01:08.3]} 20. cxd4 {[%clk 0:01:39.9]} 20... Rc8 {[%clk 0:00:50.7]} 21. Ba4
{[%clk 0:01:33.5]} 21... Bd7 {[%clk 0:00:50.7]} 22. Bb3 {[%clk 0:01:28.8]} 22...
Bb5 {[%clk 0:00:47.4]} 23. Rac1 {[%clk 0:01:14.3]} 23... Qd7 {[%clk 0:00:47.6]}
24. Qf4 {[%clk 0:01:05.6]} 24... Bc4 {[%clk 0:00:46.4]} 25. Bxc4 {[%clk
0:01:04]} 25... dxc4 {[%clk 0:00:46.4]} 26. Bxg7 {[%clk 0:00:53.4]} 26... Kxg7
{[%clk 0:00:46.5]} 27. Rc3 {[%clk 0:00:54]} 27... b5 {[%clk 0:00:44.9]} 28. h4
{[%clk 0:00:44.6]} 28... Rcd8 {[%clk 0:00:30.2]} 29. Re4 {[%clk 0:00:38.8]}
29... Qf5 {[%clk 0:00:23.9]} 30. Qxf5 {[%clk 0:00:31.4]} 30... gxf5 {[%clk
0:00:24.8]} 31. Rf4 {[%clk 0:00:31.8]} 31... Rd5 {[%clk 0:00:20.6]} 32. Rg3+
{[%clk 0:00:26.1]} 32... Kf8 {[%clk 0:00:20.7]} 33. Ra3 {[%clk 0:00:24]} 33...
Re7 {[%clk 0:00:20.3]} 34. Rc3 {[%clk 0:00:21.8]} 34... Red7 {[%clk 0:00:19.2]}
35. Rxf5 {[%clk 0:00:20.8]} 35... Rxd4 {[%clk 0:00:19]} 36. e6 {[%clk
0:00:20.9]} 36... Re7 {[%clk 0:00:18.3]} 37. Rxf7+ {[%clk 0:00:16.2]} 37... Rxf7
{[%clk 0:00:18.4]} 38. exf7 {[%clk 0:00:17.1]} 38... Kxf7 {[%clk 0:00:19.3]} 39.
a3 {[%clk 0:00:16.2]} 39... Rxh4 {[%clk 0:00:19]} 40. Kf1 {[%clk 0:00:15.9]}
40... a5 {[%clk 0:00:19]} 41. Ke2 {[%clk 0:00:16.2]} 41... b4 {[%clk 0:00:19.5]}
42. axb4 {[%clk 0:00:16.5]} 42... axb4 {[%clk 0:00:20.4]} 43. Rf3+ {[%clk
0:00:16.7]} 43... Ke6 {[%clk 0:00:20.9]} 44. Kd2 {[%clk 0:00:16.8]} 44... Kd5
{[%clk 0:00:21.1]} 45. Rf8 {[%clk 0:00:15.3]} 45... Rh6 {[%clk 0:00:20.2]} 46.
Rd8+ {[%clk 0:00:14.7]} 46... Ke4 {[%clk 0:00:18.4]} 47. Re8+ {[%clk 0:00:14.6]}
47... Kd4 {[%clk 0:00:17.5]} 48. Rd8+ {[%clk 0:00:14.9]} 48... Kc5 {[%clk
0:00:18.2]} 49. Rc8+ {[%clk 0:00:15.1]} 49... Kb5 {[%clk 0:00:18.9]} 50. g4
{[%clk 0:00:11]} 50... Rf6 {[%clk 0:00:17.7]} 51. Ke3 {[%clk 0:00:10.3]} 51...
b3 {[%clk 0:00:17.3]} 52. Rd8 {[%clk 0:00:03.9]} 52... b2 {[%clk 0:00:15.2]} 53.
Rd1 {[%clk 0:00:04.1]} 53... c3 {[%clk 0:00:15.8]} 54. g5 {[%clk 0:00:03.5]}
54... c2 {[%clk 0:00:14.2]} 55. Rd5+ {[%clk 0:00:03.7]} 55... Kc4 {[%clk
0:00:14.6]} 56. Rd8 {[%clk 0:00:03]} 56... c1=Q+ {[%clk 0:00:14.8]} 0-1

[Event "Late-Titled-Tuesday-Blitz-May-14-2024"]
[Site "Chess.com"]
[Date "2024.05.14"]
[Round "6"]
[White "sergiochess83"]
[Black "Mikayel99"]
[Result "1-0"]
[WhiteElo "2855"]
[BlackElo "2623"]
[TimeControl "180+1"]
[EndTime "15:07:07 PDT"]
[Termination "sergiochess83 won on time"]

1. e4 {[%clk 0:03:00.9]} 1... c5 {[%clk 0:02:59.1]} 2. Nf3 {[%clk 0:03:00.9]}
2... d6 {[%clk 0:02:59.4]} 3. d4 {[%clk 0:03:00.7]} 3... cxd4 {[%clk 0:03:00.3]}
4. Nxd4 {[%clk 0:03:01]} 4... Nf6 {[%clk 0:03:00.9]} 5. Nc3 {[%clk 0:03:01.4]}
5... a6 {[%clk 0:03:01.1]} 6. Be2 {[%clk 0:02:56]} 6... e5 {[%clk 0:03:00.6]} 7.
Nb3 {[%clk 0:02:55.2]} 7... Be7 {[%clk 0:03:00.9]} 8. Be3 {[%clk 0:02:52.6]}
8... Be6 {[%clk 0:03:00.9]} 9. Nd5 {[%clk 0:02:50.1]} 9... Nbd7 {[%clk
0:03:00.7]} 10. Qd3 {[%clk 0:02:48.2]} 10... O-O {[%clk 0:02:58.7]} 11. c4
{[%clk 0:02:46.1]} 11... b5 {[%clk 0:02:57.8]} 12. cxb5 {[%clk 0:02:37.5]} 12...
axb5 {[%clk 0:02:57.2]} 13. O-O {[%clk 0:02:31]} 13... Bxd5 {[%clk 0:02:48.6]}
14. exd5 {[%clk 0:02:30.7]} 14... Nb6 {[%clk 0:02:48.3]} 15. Bxb6 {[%clk
0:02:28]} 15... Qxb6 {[%clk 0:02:46.5]} 16. Qxb5 {[%clk 0:02:26.6]} 16... Qa7
{[%clk 0:02:40.9]} 17. a4 {[%clk 0:02:20.3]} 17... Rab8 {[%clk 0:02:34.7]} 18.
Qa5 {[%clk 0:01:59.2]} 18... Qd7 {[%clk 0:02:20.9]} 19. Bb5 {[%clk 0:01:52]}
19... Qg4 {[%clk 0:02:18.5]} 20. Rad1 {[%clk 0:01:37.3]} 20... Nh5 {[%clk
0:02:14.1]} 21. Qc3 {[%clk 0:01:04.6]} 21... Nf4 {[%clk 0:01:44.5]} 22. Qf3
{[%clk 0:01:00.9]} 22... Qg6 {[%clk 0:01:34.3]} 23. Na5 {[%clk 0:00:59.7]} 23...
Bg5 {[%clk 0:01:23.1]} 24. Nc6 {[%clk 0:00:56.2]} 24... Rb7 {[%clk 0:01:18.1]}
25. g3 {[%clk 0:00:48.5]} 25... e4 {[%clk 0:01:13.6]} 26. Qa3 {[%clk 0:00:31.7]}
26... Bf6 {[%clk 0:00:36.9]} 27. b4 {[%clk 0:00:15.1]} 27... Qg4 {[%clk
0:00:24.5]} 28. Rfe1 {[%clk 0:00:13.4]} 28... Nh3+ {[%clk 0:00:22.9]} 29. Kg2
{[%clk 0:00:13.6]} 29... Ng5 {[%clk 0:00:22]} 30. Be2 {[%clk 0:00:12]} 30...
Qh3+ {[%clk 0:00:20.6]} 31. Kg1 {[%clk 0:00:12.3]} 31... h5 {[%clk 0:00:17]} 32.
Bf1 {[%clk 0:00:11]} 32... Qg4 {[%clk 0:00:15.5]} 33. Bg2 {[%clk 0:00:10.5]}
33... h4 {[%clk 0:00:14.5]} 34. b5 {[%clk 0:00:10.1]} 34... hxg3 {[%clk
0:00:10.3]} 35. hxg3 {[%clk 0:00:10]} 35... Ra8 {[%clk 0:00:07.8]} 36. Qe3
{[%clk 0:00:08.7]} 36... Rxa4 {[%clk 0:00:06.7]} 37. Rb1 {[%clk 0:00:08.6]}
37... Nf3+ {[%clk 0:00:05.7]} 38. Bxf3 {[%clk 0:00:08.1]} 38... exf3 {[%clk
0:00:06.5]} 39. b6 {[%clk 0:00:06.5]} 39... Ra6 {[%clk 0:00:05.5]} 40. Qe8+
{[%clk 0:00:06]} 40... Kh7 {[%clk 0:00:05.8]} 41. Rb4 {[%clk 0:00:02.4]} 41...
Qh3 {[%clk 0:00:04.5]} 42. Qe4+ {[%clk 0:00:03.3]} 42... g6 {[%clk 0:00:04.2]}
43. Qxf3 {[%clk 0:00:03.6]} 43... Kg7 {[%clk 0:00:03.7]} 44. Rf4 {[%clk
0:00:03.6]} 44... Raxb6 {[%clk 0:00:01.2]} 45. Rxf6 {[%clk 0:00:03.3]} 45... Rb1
{[%clk 0:00:01.3]} 46. Rxf7+ {[%clk 0:00:02.3]} 46... Rxf7 {[%clk 0:00:02.2]}
47. Qc3+ {[%clk 0:00:02.5]} 47... Kh7 {[%clk 0:00:02.5]} 48. Rxb1 {[%clk
0:00:02.7]} 48... Qf5 {[%clk 0:00:02.8]} 49. Qb2 {[%clk 0:00:02]} 49... Qxd5
{[%clk 0:00:02.6]} 50. Rc1 {[%clk 0:00:01.9]} 50... Rc7 {[%clk 0:00:02.1]} 51.
Qb6 {[%clk 0:00:01.1]} 51... Rf7 {[%clk 0:00:01.6]} 52. Re1 {[%clk 0:00:01.3]}
52... Qf5 {[%clk 0:00:01]} 53. Nb4 {[%clk 0:00:01.2]} 1-0

[Event "Late-Titled-Tuesday-Blitz-May-14-2024"]
[Site "Chess.com"]
[Date "2024.05.14"]
[Round "6"]
[White "slorovel"]
[Black "GothamChess"]
[Result "1/2-1/2"]
[WhiteElo "2572"]
[BlackElo "2766"]
[TimeControl "180+1"]
[EndTime "15:07:12 PDT"]
[Termination "Game drawn - insufficient material"]

1. e4 {[%clk 0:03:00.9]} 1... d5 {[%clk 0:02:59]} 2. exd5 {[%clk 0:02:59.3]}
2... Qxd5 {[%clk 0:02:59.9]} 3. Nc3 {[%clk 0:02:58.3]} 3... Qa5 {[%clk
0:02:59.4]} 4. d4 {[%clk 0:02:57.7]} 4... Nf6 {[%clk 0:02:59.9]} 5. Nf3 {[%clk
0:02:57.1]} 5... Bf5 {[%clk 0:03:00.2]} 6. Bd3 {[%clk 0:02:57]} 6... Bxd3 {[%clk
0:03:00.1]} 7. Qxd3 {[%clk 0:02:57.9]} 7... e6 {[%clk 0:03:00.5]} 8. O-O {[%clk
0:02:55.8]} 8... c6 {[%clk 0:03:00.8]} 9. Bd2 {[%clk 0:02:54]} 9... Qa6 {[%clk
0:03:01]} 10. Qxa6 {[%clk 0:02:48.5]} 10... Nxa6 {[%clk 0:03:01.9]} 11. Ne2
{[%clk 0:02:44.9]} 11... Bd6 {[%clk 0:02:59.5]} 12. Bf4 {[%clk 0:02:42.2]} 12...
Be7 {[%clk 0:02:58.4]} 13. a3 {[%clk 0:02:31]} 13... O-O {[%clk 0:02:55.7]} 14.
Rfd1 {[%clk 0:02:29.2]} 14... h6 {[%clk 0:02:53.4]} 15. c4 {[%clk 0:02:25.8]}
15... Rfd8 {[%clk 0:02:48.7]} 16. h3 {[%clk 0:02:23.1]} 16... Rac8 {[%clk
0:02:47.1]} 17. b4 {[%clk 0:02:21.2]} 17... b5 {[%clk 0:02:44.3]} 18. Rac1
{[%clk 0:02:14.5]} 18... Ne4 {[%clk 0:02:32.8]} 19. Ne5 {[%clk 0:02:01.6]} 19...
Bf6 {[%clk 0:02:24.9]} 20. cxb5 {[%clk 0:01:49.8]} 20... Bxe5 {[%clk 0:02:22.2]}
21. dxe5 {[%clk 0:01:44.3]} 21... Rxd1+ {[%clk 0:02:18.5]} 22. Rxd1 {[%clk
0:01:40.1]} 22... cxb5 {[%clk 0:02:19.4]} 23. Kf1 {[%clk 0:01:27.7]} 23... Rc2
{[%clk 0:02:04.2]} 24. f3 {[%clk 0:01:19.6]} 24... Nc3 {[%clk 0:01:56]} 25. Rd8+
{[%clk 0:00:53]} 25... Kh7 {[%clk 0:01:55.4]} 26. Rc8 {[%clk 0:00:28.7]} 26...
Nxe2 {[%clk 0:01:30]} 27. Rxc2 {[%clk 0:00:28.2]} 27... Nxf4 {[%clk 0:01:30.5]}
28. Rc8 {[%clk 0:00:20.3]} 28... Nd5 {[%clk 0:01:26.6]} 29. Ra8 {[%clk
0:00:19.5]} 29... Nac7 {[%clk 0:01:13.4]} 30. Rxa7 {[%clk 0:00:18.8]} 30... Kg6
{[%clk 0:01:13.6]} 31. a4 {[%clk 0:00:17.7]} 31... bxa4 {[%clk 0:01:12.4]} 32.
Rxa4 {[%clk 0:00:18.6]} 32... Kf5 {[%clk 0:01:12.6]} 33. Ra7 {[%clk 0:00:15.3]}
33... g5 {[%clk 0:01:02.6]} 34. b5 {[%clk 0:00:13.6]} 34... Nxb5 {[%clk
0:01:02.5]} 35. Rxf7+ {[%clk 0:00:14.1]} 35... Kxe5 {[%clk 0:00:59.8]} 36. Rh7
{[%clk 0:00:14.1]} 36... Nd4 {[%clk 0:00:55.4]} 37. Rxh6 {[%clk 0:00:13.8]}
37... Nf5 {[%clk 0:00:51.3]} 38. Rg6 {[%clk 0:00:12.2]} 38... Nde7 {[%clk
0:00:36.5]} 39. Rxg5 {[%clk 0:00:11]} 39... Kf6 {[%clk 0:00:36.4]} 40. f4 {[%clk
0:00:06]} 40... Nd6 {[%clk 0:00:14.5]} 41. g3 {[%clk 0:00:05]} 41... Ne4 {[%clk
0:00:14.9]} 42. Rg4 {[%clk 0:00:03.5]} 42... Nf5 {[%clk 0:00:15]} 43. Kg2 {[%clk
0:00:02.9]} 43... Ne3+ {[%clk 0:00:15.6]} 44. Kf3 {[%clk 0:00:03.2]} 44... Nxg4
{[%clk 0:00:16.2]} 45. hxg4 {[%clk 0:00:03.6]} 45... Nd6 {[%clk 0:00:16.6]} 46.
g5+ {[%clk 0:00:02.5]} 46... Kg6 {[%clk 0:00:12.6]} 47. g4 {[%clk 0:00:03.4]}
47... Kf7 {[%clk 0:00:08.2]} 48. Ke3 {[%clk 0:00:03.4]} 48... Nc4+ {[%clk
0:00:06.6]} 49. Kd4 {[%clk 0:00:03.4]} 49... Nd6 {[%clk 0:00:03.4]} 50. f5
{[%clk 0:00:03.3]} 50... Nxf5+ {[%clk 0:00:02.3]} 51. gxf5 {[%clk 0:00:04.2]}
51... exf5 {[%clk 0:00:02.3]} 52. Ke5 {[%clk 0:00:04.1]} 52... Kg6 {[%clk
0:00:03]} 53. Kf4 {[%clk 0:00:04.3]} 53... Kg7 {[%clk 0:00:03.6]} 54. Kxf5
{[%clk 0:00:04.8]} 54... Kf7 {[%clk 0:00:04.2]} 55. g6+ {[%clk 0:00:05.3]} 55...
Kg7 {[%clk 0:00:04.6]} 56. Kg5 {[%clk 0:00:05.9]} 56... Kg8 {[%clk 0:00:05.1]}
57. Kf6 {[%clk 0:00:06.1]} 57... Kf8 {[%clk 0:00:05.4]} 58. Ke6 {[%clk
0:00:06.6]} 58... Kg7 {[%clk 0:00:05.6]} 59. Kf5 {[%clk 0:00:06.6]} 59... Kg8
{[%clk 0:00:06.2]} 60. g7 {[%clk 0:00:06.4]} 60... Kf7 {[%clk 0:00:05.8]} 61.
Kg5 {[%clk 0:00:06.1]} 61... Kxg7 {[%clk 0:00:05.4]} 1/2-1/2